lending/lending_fUSD_20240610
["ID","MTS","AMOUNT","RATE_DAILY","PERIOD"]
[328950119,1718026247708,-34048.48733487,0.00028817,2]
[328950121,1718026247718,-154.06645658,0.0002889,2]
[328950123,1718026247729,-1505.19221632,0.00028898,2]
[328950125,1718026247739,-172.57358747,0.00028898,2]
[328950127,1718026247749,-926.82828565,0.00028898,2]
[328950129,1718026247759,-646.29427256,0.00028898,2]
[328950131,1718026247769,-208.87102398,0.00028898,2]
[328950133,1718026247780,-5895.19145889,0.00028898,2]
[328950135,1718026247791,-303.68139347,0.00028899,2]
[328950137,1718026247801,-1465.62018346,0.00028899,2]
[328950139,1718026247810,-500.0,0.00028899,2]
[328950141,1718026247820,-345.0,0.000289,2]
[328950143,1718026247830,-500.0,0.00028941,2]
[328950145,1718026247839,-677.65,0.00028991,2]
[328950147,1718026247849,-156.02392244,0.00029,2]
[328950149,1718026247859,-51213.86215579,0.00029,2]
[328950151,1718026247869,-5085.93199775,0.00029,2]
[328950153,1718026247879,-1489.11876675,0.00029,2]
[328950154,1718026247888,-500.0,0.00029,2]
[328950156,1718026247898,-150.93280993,0.00029,2]
[328950157,1718026247907,-160.0,0.00029,2]
[328950159,1718026247917,-5000.0,0.00029,2]
[328950160,1718026247929,-714.36804046,0.00029,2]
[328950161,1718026247942,-4171.32502027,0.00029,2]
[328950162,1718026247951,-140625.70159861,0.00029,7]
[328950163,1718026247961,-12915.18713855,0.00029,2]
[328950164,1718026247971,-1350.0,0.00029,2]
[328950165,1718026247981,-500.0,0.00029,2]
[328950166,1718026247991,-500.0,0.00029,2]
[328950167,1718026248001,-500.0,0.00029,2]
[328950168,1718026248011,-500.0,0.00029,2]
[328950169,1718026248021,-500.0,0.00029,2]
[328950171,1718026248031,-500.0,0.00029,2]
[328950173,1718026248041,-500.0,0.00029,2]
[328950175,1718026248050,-500.0,0.00029,2]
[328950177,1718026248060,-500.0,0.00029,2]
[328950179,1718026248070,-500.0,0.00029,2]
[328950181,1718026248081,-500.0,0.00029,2]
[328950183,1718026248092,-500.0,0.00029,2]
[328950185,1718026248101,-500.0,0.00029,2]
[328950187,1718026248110,-500.0,0.00029,2]
[328950189,1718026248121,-500.0,0.00029,2]
[328950191,1718026248131,-500.0,0.00029,2]
[328950193,1718026248142,-500.0,0.00029,2]
[328950195,1718026248152,-500.0,0.00029,2]
[328950197,1718026248162,-500.0,0.00029,2]
[328950199,1718026248172,-500.0,0.00029,2]
[328950201,1718026248184,-500.0,0.00029,2]
[328950203,1718026248194,-500.0,0.00029,2]
[328950205,1718026248205,-500.0,0.00029,2]
[328950207,1718026248215,-500.0,0.00029,2]
[328950209,1718026248224,-500.0,0.00029,2]
[328950211,1718026248233,-418.45039489,0.00029,2]
[328950213,1718026248243,-418.45039489,0.00029,2]
[328950215,1718026248253,-418.45039489,0.00029,2]
[328950217,1718026248263,-1000.0,0.00029,2]
[328950219,1718026248273,-500.0,0.00029,2]
[328950221,1718026248283,-500.0,0.00029,2]
[328950223,1718026248293,-500.0,0.00029,2]
[328950225,1718026248302,-500.0,0.00029,2]
[328950227,1718026248312,-500.0,0.00029,2]
[328950229,1718026248321,-500.0,0.00029,2]
[328950231,1718026248331,-500.0,0.00029,2]
[328950233,1718026248341,-500.0,0.00029,2]
[328950235,1718026248351,-500.0,0.00029,2]
[328950237,1718026248360,-500.0,0.00029,2]
[328950239,1718026248370,-500.0,0.00029,2]
[328950241,1718026248380,-500.0,0.00029,2]
[328950243,1718026248390,-500.0,0.00029,2]
[328950245,1718026248399,-500.0,0.00029,2]
[328950247,1718026248408,-500.0,0.00029,2]
[328950249,1718026248418,-500.0,0.00029,2]
[328950251,1718026248429,-500.0,0.00029,2]
[328950253,1718026248439,-500.0,0.00029,2]
[328950255,1718026248448,-500.0,0.00029,2]
[328950257,1718026248458,-500.0,0.00029,2]
[328950259,1718026248468,-500.0,0.00029,2]
[328950261,1718026248478,-500.0,0.00029,2]
[328950263,1718026248488,-500.0,0.00029,2]
[328950265,1718026248498,-500.0,0.00029,2]
[328950267,1718026248508,-500.0,0.00029,2]
[328950269,1718026248518,-500.0,0.00029,2]
[328950271,1718026248528,-500.0,0.00029,2]
[328950273,1718026248537,-500.0,0.00029,2]
[328950275,1718026248547,-500.0,0.00029,2]
[328950277,1718026248557,-500.0,0.00029,2]
[328950279,1718026248567,-500.0,0.00029,2]
[328950281,1718026248577,-500.0,0.00029,2]
[328950283,1718026248587,-500.0,0.00029,2]
[328950285,1718026248596,-500.0,0.00029,2]
[328950287,1718026248606,-500.0,0.00029,2]
[328950289,1718026248615,-500.0,0.00029,2]
[328950291,1718026248625,-500.0,0.00029,2]
[328950293,1718026248635,-500.0,0.00029,2]
[328950295,1718026248645,-500.0,0.00029,2]
[328950297,1718026248661,-500.0,0.00029,2]
[328950299,1718026248671,-500.0,0.00029,2]
[328950301,1718026248682,-500.0,0.00029,2]
[328950303,1718026248692,-500.0,0.00029,2]
[328950305,1718026248703,-500.0,0.00029,2]
[328950307,1718026248713,-500.0,0.00029,2]
[328950309,1718026248722,-500.0,0.00029,2]
[328950311,1718026248735,-500.0,0.00029,2]
[328950313,1718026248745,-500.0,0.00029,2]
[328950315,1718026248755,-500.0,0.00029,2]
[328950317,1718026248764,-500.0,0.00029,2]
[328950319,1718026248774,-500.0,0.00029,2]
[328950321,1718026248784,-500.0,0.00029,2]
[328950323,1718026248794,-500.0,0.00029,2]
[328950325,1718026248804,-500.0,0.00029,2]
[328950327,1718026248814,-500.0,0.00029,2]
[328950329,1718026248824,-500.0,0.00029,2]
[328950331,1718026248833,-500.0,0.00029,2]
[328950333,1718026248843,-500.0,0.00029,2]
[328950335,1718026248853,-500.0,0.00029,2]
[328950337,1718026248863,-500.0,0.00029,2]
[328950339,1718026248872,-500.0,0.00029,2]
[328950341,1718026248882,-500.0,0.00029,2]
[328950343,1718026248891,-500.0,0.00029,2]
[328950345,1718026248901,-500.0,0.00029,2]
[328950361,1718026249035,-500.0,0.00029,2]
[328950364,1718026249073,-500.0,0.00029,2]
[328950366,1718026249083,-500.0,0.00029,2]
[328950368,1718026249093,-500.0,0.00029,2]
[328950370,1718026249103,-500.0,0.00029,2]
[328950372,1718026249113,-500.0,0.00029,2]
[328950374,1718026249123,-500.0,0.00029,2]
[328950376,1718026249132,-500.0,0.00029,2]
[328950378,1718026249142,-500.0,0.00029,2]
[328950380,1718026249152,-500.0,0.00029,2]
[328950382,1718026249161,-500.0,0.00029,2]
[328950384,1718026249171,-500.0,0.00029,2]
[328950386,1718026249184,-500.0,0.00029,2]
[328950388,1718026249193,-500.0,0.00029,2]
[328950390,1718026249203,-546.0,0.00029006,2]
[328950392,1718026249212,-1978.0,0.00029006,2]
[328950394,1718026249222,-290.0,0.00029006,2]
[328950396,1718026249232,-5155.0,0.00029006,2]
[328950398,1718026249241,-978.0,0.00029006,2]
[328950400,1718026249250,-967.85394761,0.00029039,2]
[328950402,1718026249260,-166.52095382,0.00029039,2]
[328950404,1718026249270,-1539.01182079,0.00029039,2]
[328950406,1718026249280,-861.8545064,0.00029039,2]
[328950408,1718026249290,-1200.98334776,0.00029039,2]
[328950410,1718026249300,-3892.44824461,0.00029039,2]
[328950412,1718026249309,-1276.67123089,0.00029039,2]
[328950414,1718026249319,-225.14837841,0.00029039,2]
[328950416,1718026249329,-208.34045628,0.00029039,2]
[328950418,1718026249339,-706.32929204,0.00029039,2]
[328950420,1718026249349,-155.4878975,0.00029039,2]
[328950422,1718026249359,-10214.53533736,0.00029039,2]
[328950424,1718026249369,-156.17191312,0.00029039,2]
[328950426,1718026249379,-155.0,0.0002904,2]
[328950428,1718026249389,-154.06645658,0.0002904,2]
[328950430,1718026249399,-153.6760357,0.00029041,5]
[328950432,1718026249410,-356.49467355,0.00029041,4]
[328950434,1718026249419,-500.0,0.00029041,4]
[328950436,1718026249431,-300.56774659,0.00029041,4]
[328950438,1718026249440,-500.0,0.00029041,4]
[328950439,1718026249450,-500.0,0.00029041,4]
[328950440,1718026249460,-580.78146036,0.00029041,4]
[328950441,1718026249471,-514.89310331,0.00029041,4]
[328950442,1718026249481,-530.74683117,0.00029041,4]
[328950443,1718026249491,-511.57071061,0.00029041,4]
[328950444,1718026249501,-500.0,0.00029041,4]
[328950445,1718026249510,-526.52880763,0.00029041,4]
[328950447,1718026249520,-500.0,0.00029041,4]
[328950449,1718026249530,-433.77029078,0.00029041,4]
[328950451,1718026249540,-254.41341446,0.00029041,4]
[328950453,1718026249550,-234.56822299,0.00029041,4]
[328950455,1718026249560,-500.0,0.00029041,4]
[328950457,1718026249569,-500.0,0.00029041,4]
[328950459,1718026249578,-500.0,0.00029041,4]
[328950461,1718026249588,-500.0,0.00029041,4]
[328950463,1718026249597,-500.0,0.00029041,4]
[328950465,1718026249606,-500.0,0.00029041,4]
[328950467,1718026249615,-500.0,0.00029041,4]
[328950469,1718026249625,-500.0,0.00029041,4]
[328950471,1718026249635,-500.0,0.00029041,4]
[328950473,1718026249645,-500.0,0.00029041,4]
[328950475,1718026249657,-549.23638748,0.00029041,4]
[328950477,1718026249669,-550.08561888,0.00029041,4]
[328950479,1718026249680,-567.12559029,0.00029041,4]
[328950481,1718026249689,-500.0,0.00029041,4]
[328950483,1718026249700,-500.0,0.00029041,4]
[328950485,1718026249711,-205.16930288,0.00029041,4]
[328950487,1718026249720,-500.0,0.00029041,4]
[328950489,1718026249730,-507.46699223,0.00029041,4]
[328950491,1718026249742,-517.46049747,0.00029041,4]
[328950493,1718026249752,-500.0,0.00029041,4]
[328950495,1718026249762,-524.87765762,0.00029041,4]
[328950497,1718026249771,-519.64474716,0.00029041,4]
[328950499,1718026249780,-500.0,0.00029041,4]
[328950501,1718026249790,-500.0,0.00029041,4]
[328950503,1718026249800,-500.0,0.00029041,4]
[328950505,1718026249809,-517.93048106,0.00029041,4]
[328950507,1718026249819,-510.47691411,0.00029041,4]
[328950509,1718026249829,-522.69,0.00029041,4]
[328950511,1718026249839,-522.69,0.00029041,4]
[328950513,1718026249848,-522.69,0.00029041,4]
[328950515,1718026249858,-522.69,0.00029041,4]
[328950517,1718026249868,-522.69,0.00029041,4]
[328950519,1718026249878,-522.69,0.00029041,4]
[328950521,1718026249887,-500.0,0.00029041,4]
[328950523,1718026249897,-522.69,0.00029041,4]
[328950525,1718026249906,-522.69,0.00029041,4]
[328950527,1718026249917,-522.69,0.00029041,4]
[328950529,1718026249928,-522.69,0.00029041,4]
[328950531,1718026249938,-522.69,0.00029041,4]
[328950533,1718026249947,-522.69,0.00029041,4]
[328950535,1718026249957,-368.36125509,0.00029041,4]
[328950537,1718026249966,-522.69,0.00029041,4]
[328950539,1718026249976,-522.69,0.00029041,4]
[328950541,1718026249986,-517.74879577,0.00029041,4]
[328950543,1718026249996,-522.69,0.00029041,4]
[328950545,1718026250006,-522.69,0.00029041,4]
[328950547,1718026250016,-522.69,0.00029041,4]
[328950549,1718026250025,-522.69,0.00029041,4]
[328950551,1718026250035,-500.0,0.00029041,4]
[328950553,1718026250044,-522.69,0.00029041,4]
[328950555,1718026250054,-522.69,0.00029041,4]
[328950557,1718026250062,-522.69,0.00029041,4]
[328950559,1718026250072,-522.69,0.00029041,4]
[328950561,1718026250082,-522.69,0.00029041,4]
[328950563,1718026250091,-522.7772964,0.00029041,4]
[328950565,1718026250101,-500.0,0.00029041,4]
[328950567,1718026250111,-501.60119028,0.00029041,4]
[328950569,1718026250120,-528.57063381,0.00029041,4]
[328950570,1718026250129,-500.0,0.00029041,4]
[328950573,1718026250139,-261.97139895,0.00029041,4]
[328950574,1718026250149,-531.30113934,0.00029041,4]
[328950576,1718026250158,-433.57870178,0.00029041,4]
[328950578,1718026250167,-522.84546861,0.00029041,4]
[328950580,1718026250178,-500.0,0.00029041,4]
[328950582,1718026250188,-508.11796117,0.00029041,4]
[328950584,1718026250197,-500.0,0.00029041,4]
[328950586,1718026250206,-500.0,0.00029041,4]
[328950588,1718026250216,-512.96255718,0.00029041,4]
[328950590,1718026250226,-500.0,0.00029041,4]
[328950592,1718026250235,-500.0,0.00029041,4]
[328950594,1718026250244,-526.93140955,0.00029041,4]
[328950596,1718026250253,-500.0,0.00029041,4]
[328950598,1718026250263,-500.0,0.00029041,4]
[328950600,1718026250272,-502.17298128,0.00029041,4]
[328950602,1718026250281,-512.15618759,0.00029041,4]
[328950604,1718026250291,-504.76978809,0.00029041,4]
[328950606,1718026250302,-500.0,0.00029041,4]
[328950608,1718026250312,-500.0,0.00029041,4]
[328950610,1718026250322,-500.0,0.00029041,4]
[328950612,1718026250331,-500.0,0.00029041,4]
[328950614,1718026250341,-543.26964642,0.00029041,4]
[328950616,1718026250350,-500.0,0.00029041,4]
[328950618,1718026250360,-500.0,0.00029041,4]
[328950620,1718026250370,-517.05265289,0.00029041,4]
[328950622,1718026250379,-500.0,0.00029041,4]
[328950624,1718026250389,-500.0,0.00029041,4]
[328950626,1718026250398,-506.86292186,0.00029041,4]
[328950628,1718026250407,-545.80137007,0.00029041,4]
[328950630,1718026250417,-500.0,0.00029041,4]
[328950632,1718026250426,-500.0,0.00029041,4]
[328950634,1718026250438,-500.0,0.00029041,4]
[328950636,1718026250447,-500.0,0.00029041,4]
[328950638,1718026250459,-608.64876011,0.00029041,4]
[328950640,1718026250468,-500.0,0.00029041,4]
[328950642,1718026250478,-631.97136793,0.00029041,4]
[328950644,1718026250487,-532.64624957,0.00029041,4]
[328950646,1718026250497,-500.0,0.00029041,4]
[328950648,1718026250507,-500.0,0.00029041,4]
[328950649,1718026250516,-504.24226537,0.00029041,4]
[328950651,1718026250525,-500.0,0.00029041,4]
[328950653,1718026250534,-500.0,0.00029041,4]
[328950655,1718026250545,-500.0,0.00029041,4]
[328950657,1718026250554,-500.0,0.00029041,4]
[328950659,1718026250564,-500.0,0.00029041,4]
[328950662,1718026250574,-500.0,0.00029041,4]
[328950664,1718026250584,-511.72821902,0.00029041,4]
[328950666,1718026250594,-500.0,0.00029041,4]
[328950668,1718026250603,-500.0,0.00029041,4]
[328950670,1718026250612,-500.0,0.00029041,4]
[328950672,1718026250622,-500.0,0.00029041,4]
[328950673,1718026250631,-500.0,0.00029041,4]
[328950675,1718026250640,-592.39798458,0.00029041,4]
[328950678,1718026250652,-312.54644118,0.00029041,4]
[328950680,1718026250663,-500.0,0.00029041,4]
[328950682,1718026250672,-180.80668592,0.00029041,4]
[328950684,1718026250684,-500.0,0.00029041,4]
[328950686,1718026250695,-605.06,0.00029041,4]
[328950688,1718026250707,-622.96,0.00029041,4]
[328950690,1718026250717,-301.30601117,0.00029041,4]
[328950692,1718026250727,-500.0,0.00029041,4]
[328950694,1718026250737,-500.0,0.00029041,4]
[328950696,1718026250747,-525.13676241,0.00029041,4]
[328950698,1718026250756,-500.0,0.00029041,4]
[328950700,1718026250766,-500.0,0.00029041,4]
[328950702,1718026250775,-500.0,0.00029041,4]
[328950703,1718026250785,-500.0,0.00029041,4]
[328950705,1718026250795,-522.62916273,0.00029041,4]
[328950707,1718026250804,-500.0,0.00029041,4]
[328950709,1718026250814,-500.0,0.00029041,4]
[328950710,1718026250825,-526.03898802,0.00029041,4]
[328950711,1718026250835,-500.0,0.00029041,4]
[328950712,1718026250844,-516.33078537,0.00029041,4]
[328950713,1718026250854,-500.0,0.00029041,4]
[328950714,1718026250864,-500.0,0.00029041,4]
[328950715,1718026250873,-500.0,0.00029041,4]
[328950717,1718026250883,-542.30958017,0.00029041,4]
[328950719,1718026250893,-511.69984175,0.00029041,4]
[328950721,1718026250903,-537.55267347,0.00029041,4]
[328950723,1718026250912,-500.0,0.00029041,4]
[328950725,1718026250922,-500.0,0.00029041,4]
[328950727,1718026250934,-500.0,0.00029041,4]
[328950729,1718026250943,-500.0,0.00029041,4]
[328950731,1718026250953,-156.81522,0.00029041,7]
[328950733,1718026250962,-500.0,0.00029041,4]
[328950735,1718026250972,-535.93175327,0.00029041,4]
[328950737,1718026250982,-530.8340334,0.00029041,4]
[328950739,1718026250991,-500.0,0.00029041,4]
[328950741,1718026251002,-500.0,0.00029041,4]
[328950743,1718026251012,-500.0,0.00029041,4]
[328950745,1718026251022,-155.53537831,0.00029041,4]
[328950746,1718026251032,-500.0,0.00029041,4]
[328950749,1718026251042,-500.0,0.00029041,4]
[328950751,1718026251051,-500.0,0.00029041,4]
[328950752,1718026251061,-500.0,0.00029041,4]
[328950754,1718026251072,-500.0,0.00029041,4]
[328950756,1718026251081,-500.0,0.00029041,4]
[328950758,1718026251091,-500.0,0.00029041,4]
[328950760,1718026251100,-500.0,0.00029041,4]
[328950762,1718026251110,-523.18973266,0.00029041,4]
[328950764,1718026251119,-500.0,0.00029041,4]
[328950766,1718026251130,-500.0,0.00029041,4]
[328950768,1718026251139,-500.0,0.00029041,4]
[328950770,1718026251148,-542.52771008,0.00029041,4]
[328950772,1718026251158,-500.0,0.00029041,4]
[328950774,1718026251168,-540.66946347,0.00029041,4]
[328950776,1718026251177,-500.0,0.00029041,4]
[328950778,1718026251188,-565.50230852,0.00029041,4]
[328950780,1718026251197,-500.0,0.00029041,4]
[328950782,1718026251206,-539.2929594,0.00029041,4]
[328950784,1718026251215,-524.3296811,0.00029041,4]
[328950785,1718026251227,-524.35568984,0.00029041,4]
[328950787,1718026251237,-535.14832132,0.00029041,4]
[328950789,1718026251246,-519.39265905,0.00029041,4]
[328950791,1718026251256,-523.81197918,0.00029041,4]
[328950793,1718026251265,-500.0,0.00029041,4]
[328950795,1718026251275,-500.0,0.00029041,4]
[328950797,1718026251285,-511.48509402,0.00029041,4]
[328950799,1718026251295,-500.0,0.00029041,4]
[328950801,1718026251305,-500.0,0.00029041,4]
[328950803,1718026251314,-564.19739094,0.00029041,4]
[328950806,1718026251324,-532.13895948,0.00029041,4]
[328950808,1718026251333,-535.92853017,0.00029041,4]
[328950809,1718026251343,-500.0,0.00029041,4]
[328950811,1718026251353,-510.3230246,0.00029041,4]
[328950813,1718026251363,-500.0,0.00029041,4]
[328950815,1718026251373,-500.0,0.00029041,4]
[328950817,1718026251382,-500.0,0.00029041,4]
[328950819,1718026251391,-500.0,0.00029041,4]
[328950821,1718026251401,-500.0,0.00029041,4]
[328950823,1718026251411,-500.0,0.00029041,4]
[328950825,1718026251420,-500.0,0.00029041,4]
[328950827,1718026251430,-500.0,0.00029041,4]
[328950829,1718026251440,-500.0,0.00029041,4]
[328950831,1718026251449,-527.32659729,0.00029041,4]
[328950833,1718026251459,-500.0,0.00029041,4]
[328950835,1718026251469,-500.0,0.00029041,4]
[328950837,1718026251478,-519.51773674,0.00029041,4]
[328950839,1718026251488,-500.0,0.00029041,4]
[328950841,1718026251497,-523.30219467,0.00029041,4]
[328950843,1718026251506,-535.55411896,0.00029041,4]
[328950845,1718026251516,-510.00952186,0.00029041,4]
[328950847,1718026251526,-523.40398383,0.00029041,4]
[328950849,1718026251536,-500.0,0.00029041,4]
[328950851,1718026251545,-500.0,0.00029041,4]
[328950865,1718026251555,-541.45234103,0.00029041,4]
[328950867,1718026251688,-500.0,0.00029041,4]
[328950869,1718026251699,-520.02564328,0.00029041,4]
[328950871,1718026251709,-500.0,0.00029041,4]
[328950873,1718026251718,-500.0,0.00029041,4]
[328950875,1718026251728,-526.54491466,0.00029041,4]
[328950877,1718026251741,-583.32,0.00029041,4]
[328950879,1718026251751,-500.0,0.00029041,4]
[328950881,1718026251760,-510.96853894,0.00029041,4]
[328950883,1718026251769,-320.21674931,0.00029041,4]
[328950885,1718026251779,-560.24133703,0.00029041,4]
[328950887,1718026251788,-500.0,0.00029041,4]
[328950889,1718026251798,-537.28315044,0.00029041,4]
[328950891,1718026251808,-440.53016842,0.00029041,4]
[328950893,1718026251820,-500.0,0.00029041,4]
[328950896,1718026251833,-528.58965754,0.00029041,4]
[328950898,1718026251843,-500.0,0.00029041,4]
[328950900,1718026251853,-500.0,0.00029041,4]
[328950902,1718026251863,-507.72866923,0.00029041,4]
[328950904,1718026251873,-500.0,0.00029041,4]
[328950906,1718026251883,-500.0,0.00029041,4]
[328950908,1718026251894,-554.13254227,0.00029041,4]
[328950910,1718026251905,-500.0,0.00029041,4]
[328950912,1718026251915,-500.0,0.00029041,4]
[328950914,1718026251924,-500.0,0.00029041,4]
[328950916,1718026251936,-541.07945902,0.00029041,4]
[328950918,1718026251946,-500.0,0.00029041,4]
[328950920,1718026251955,-500.0,0.00029041,4]
[328950922,1718026251965,-500.0,0.00029041,4]
[328950924,1718026251974,-500.0,0.00029041,4]
[328950926,1718026251984,-500.0,0.00029041,4]
[328950928,1718026251995,-500.0,0.00029041,4]
[328950930,1718026252004,-500.0,0.00029041,4]
[328950932,1718026252013,-500.0,0.00029041,4]
[328950934,1718026252023,-500.0,0.00029041,4]
[328950936,1718026252033,-500.0,0.00029041,4]
[328950938,1718026252043,-500.0,0.00029041,4]
[328950940,1718026252052,-500.0,0.00029041,4]
[328950942,1718026252062,-500.0,0.00029041,4]
[328950944,1718026252071,-500.0,0.00029041,4]
[328950945,1718026252081,-500.0,0.00029041,4]
[328950946,1718026252091,-532.10094907,0.00029041,4]
[328950947,1718026252101,-500.0,0.00029041,4]
[328950948,1718026252111,-500.0,0.00029041,4]
[328950949,1718026252121,-463.47025983,0.00029041,4]
[328950950,1718026252131,-500.0,0.00029041,4]
[328950952,1718026252140,-500.0,0.00029041,4]
[328950953,1718026252150,-500.0,0.00029041,4]
[328950955,1718026252160,-500.0,0.00029041,4]
[328950957,1718026252169,-500.0,0.00029041,4]
[328950959,1718026252180,-500.0,0.00029041,4]
[328950961,1718026252189,-500.0,0.00029041,4]
[328950963,1718026252199,-500.0,0.00029041,4]
[328950965,1718026252208,-500.0,0.00029041,4]
[328950967,1718026252217,-500.0,0.00029041,4]
[328950969,1718026252228,-500.0,0.00029041,4]
[328950971,1718026252238,-500.0,0.00029041,4]
[328950973,1718026252247,-500.0,0.00029041,4]
[328950975,1718026252257,-500.0,0.00029041,4]
[328950977,1718026252266,-500.0,0.00029041,4]
[328950979,1718026252276,-457.82180396,0.00029041,4]
[328950981,1718026252286,-500.0,0.00029041,4]
[328950983,1718026252295,-510.21909789,0.00029041,4]
[328950985,1718026252305,-500.0,0.00029041,4]
[328950987,1718026252314,-500.0,0.00029041,4]
[328950989,1718026252323,-528.16899133,0.00029041,4]
[328950991,1718026252333,-500.0,0.00029041,4]
[328950993,1718026252343,-500.0,0.00029041,4]
[328950995,1718026252352,-500.0,0.00029041,4]
[328950997,1718026252362,-526.98585032,0.00029041,4]
[328950999,1718026252371,-500.0,0.00029041,4]
[328951001,1718026252381,-500.0,0.00029041,4]
[328951003,1718026252391,-545.36705479,0.00029041,4]
[328951005,1718026252400,-500.0,0.00029041,4]
[328951007,1718026252410,-500.0,0.00029041,4]
[328951009,1718026252420,-500.0,0.00029041,4]
[328951011,1718026252431,-500.0,0.00029041,4]
[328951013,1718026252440,-500.0,0.00029041,4]
[328951015,1718026252450,-506.44967207,0.00029041,4]
[328951017,1718026252459,-524.47601886,0.00029041,4]
[328951019,1718026252469,-497.84021167,0.00029041,4]
[328951021,1718026252479,-500.0,0.00029041,4]
[328951023,1718026252489,-500.0,0.00029041,4]
[328951025,1718026252498,-500.0,0.00029041,4]
[328951027,1718026252508,-500.0,0.00029041,4]
[328951029,1718026252518,-507.46709295,0.00029041,4]
[328951031,1718026252529,-500.0,0.00029041,4]
[328951033,1718026252539,-500.0,0.00029041,4]
[328951035,1718026252550,-500.0,0.00029041,4]
[328951037,1718026252559,-500.0,0.00029041,4]
[328951039,1718026252568,-386.67899025,0.00029041,4]
[328951081,1718026252967,-113.32100975,0.00029041,4]
[328951083,1718026252977,-500.0,0.00029041,4]
[328951085,1718026252986,-500.0,0.00029041,4]
[328951087,1718026252996,-166.00822352,0.00029041,4]
[328951089,1718026253010,-59.84048394,0.00029041,4]
[328951091,1718026253020,-319.54723341,0.00029041,4]
[328951098,1718026253077,-180.45276659,0.00029041,4]
[328951100,1718026253086,-434.52726518,0.00029041,4]
[328951102,1718026253099,-65.47273482,0.00029041,4]
[328951104,1718026253109,-500.0,0.00029041,4]
[328951106,1718026253118,-500.0,0.00029041,4]
[328951108,1718026253128,-500.0,0.00029041,4]
[328951110,1718026253137,-500.0,0.00029041,4]
[328951112,1718026253147,-539.41006883,0.00029041,4]
[328951114,1718026253158,-500.0,0.00029041,4]
[328951116,1718026253167,-531.9509687,0.00029041,4]
[328951118,1718026253177,-500.0,0.00029041,4]
[328951120,1718026253186,-194.52469142,0.00029041,4]
[328951123,1718026253202,-305.47530858,0.00029041,4]
[328951125,1718026253212,-500.0,0.00029041,4]
[328951127,1718026253221,-500.0,0.00029041,4]
[328951128,1718026253230,-500.0,0.00029041,4]
[328951129,1718026253239,-500.0,0.00029041,4]
[328951130,1718026253248,-500.0,0.00029041,4]
[328951131,1718026253257,-500.0,0.00029041,4]
[328951132,1718026253266,-500.0,0.00029041,4]
[328951133,1718026253275,-500.0,0.00029041,4]
[328951134,1718026253284,-534.26458434,0.00029041,4]
[328951136,1718026253293,-500.0,0.00029041,4]
[328951138,1718026253302,-500.0,0.00029041,4]
[328951140,1718026253312,-544.18989148,0.00029041,4]
[328951142,1718026253322,-592.91735002,0.00029041,4]
[328951144,1718026253331,-577.65893596,0.00029041,4]
[328951146,1718026253341,-500.0,0.00029041,4]
[328951148,1718026253350,-500.0,0.00029041,4]